[Event "*** Titled Tuesday Blitz"]
[Site "Chess.com"]
[Date "2020.04.07"]
[Round "5"]
[White "Blagorod"]
[Black "edgarrodrigues"]
[Result "0-1"]
[WhiteElo "2114"]
[BlackElo "2429"]
[TimeControl "180+1"]
[EndTime "13:57:03 PDT"]
[Termination "edgarrodrigues won by resignation"]

1. e4 {[%clk 0:03:00.9]} 1... e6 {[%clk 0:02:59.9]} 2. d4 {[%clk 0:03:00.2]}
2... d5 {[%clk 0:03:00.1]} 3. Nc3 {[%clk 0:03:00.7]} 3... Nf6 {[%clk 0:02:59.9]}
4. exd5 {[%clk 0:02:59.5]} 4... exd5 {[%clk 0:03:00.7]} 5. Bd3 {[%clk
0:02:59.7]} 5... Be7 {[%clk 0:03:00.9]} 6. Nge2 {[%clk 0:02:58.9]} 6... O-O
{[%clk 0:03:01.1]} 7. O-O {[%clk 0:02:59.3]} 7... c6 {[%clk 0:03:02]} 8. Ng3
{[%clk 0:02:54.4]} 8... Re8 {[%clk 0:03:01.3]} 9. Nf5 {[%clk 0:02:51.9]} 9...
Bxf5 {[%clk 0:03:00.6]} 10. Bxf5 {[%clk 0:02:51.5]} 10... Nbd7 {[%clk
0:03:01.5]} 11. Qf3 {[%clk 0:02:47]} 11... Nf8 {[%clk 0:03:00.1]} 12. Ne2 {[%clk
0:02:42.5]} 12... Ng6 {[%clk 0:02:58.7]} 13. Bd3 {[%clk 0:02:33.9]} 13... Qc7
{[%clk 0:02:54.9]} 14. Ng3 {[%clk 0:02:04.9]} 14... Bd6 {[%clk 0:02:52.6]} 15.
Bg5 {[%clk 0:02:02]} 15... Ne4 {[%clk 0:02:45.2]} 16. Nxe4 {[%clk 0:01:39.7]}
16... dxe4 {[%clk 0:02:46]} 17. Bxe4 {[%clk 0:01:38.3]} 17... Bxh2+ {[%clk
0:02:45.7]} 18. Kh1 {[%clk 0:01:37.8]} 18... Bf4 {[%clk 0:02:40.6]} 19. Bxg6
{[%clk 0:01:32.7]} 19... Bxg5 {[%clk 0:02:40.2]} 20. Bd3 {[%clk 0:01:27.7]}
20... Re7 {[%clk 0:02:36.3]} 21. Rae1 {[%clk 0:01:23.6]} 21... Rae8 {[%clk
0:02:36]} 22. Rxe7 {[%clk 0:01:23]} 22... Qxe7 {[%clk 0:02:35]} 23. g3 {[%clk
0:01:13.8]} 23... Bf6 {[%clk 0:02:34.3]} 24. c3 {[%clk 0:01:12.6]} 24... g6
{[%clk 0:02:34.5]} 25. Kg2 {[%clk 0:01:10.9]} 25... Kg7 {[%clk 0:02:33.2]} 26.
Rh1 {[%clk 0:01:08.4]} 26... Qe6 {[%clk 0:02:32.8]} 27. b3 {[%clk 0:01:07.1]}
27... h5 {[%clk 0:02:25.6]} 28. Bc4 {[%clk 0:01:02.6]} 28... Qe4 {[%clk
0:02:21.4]} 29. Qxe4 {[%clk 0:01:02]} 29... Rxe4 {[%clk 0:02:22.3]} 30. Kf3
{[%clk 0:00:57.5]} 30... Re7 {[%clk 0:02:21.9]} 31. g4 {[%clk 0:00:55.6]} 31...
h4 {[%clk 0:02:20.8]} 32. Kg2 {[%clk 0:00:50.1]} 32... Bg5 {[%clk 0:02:19.2]}
33. Kf3 {[%clk 0:00:45.2]} 33... Bd2 {[%clk 0:02:10.1]} 34. d5 {[%clk
0:00:42.1]} 34... Bxc3 {[%clk 0:01:54.4]} 35. Rxh4 {[%clk 0:00:41.2]} 35... b5
{[%clk 0:01:50]} 36. Bd3 {[%clk 0:00:38.2]} 36... cxd5 {[%clk 0:01:46.4]} 37.
Bxb5 {[%clk 0:00:37.8]} 37... Re4 {[%clk 0:01:36.5]} 38. Rh1 {[%clk 0:00:33.1]}
38... Rd4 {[%clk 0:01:33.1]} 39. Rc1 {[%clk 0:00:29.5]} 39... Ba5 {[%clk
0:01:31.3]} 40. Rc2 {[%clk 0:00:28]} 40... Bb6 {[%clk 0:01:30.3]} 41. Bf1 {[%clk
0:00:24.4]} 41... Rd1 {[%clk 0:01:27.1]} 42. Bg2 {[%clk 0:00:23.9]} 42... d4
{[%clk 0:01:26.1]} 43. Kg3 {[%clk 0:00:21.5]} 43... d3 {[%clk 0:01:25.5]} 44.
Rb2 {[%clk 0:00:16.9]} 44... Bd4 {[%clk 0:01:16.4]} 45. Bf3 {[%clk 0:00:16.9]}
45... Rg1+ {[%clk 0:01:14.4]} 46. Kh2 {[%clk 0:00:16]} 46... Rf1 {[%clk
0:01:09.7]} 47. Rd2 {[%clk 0:00:15.2]} 47... Rxf2+ {[%clk 0:01:07.6]} 48. Rxf2
{[%clk 0:00:15.1]} 48... Bxf2 {[%clk 0:01:08.5]} 49. Kg2 {[%clk 0:00:15.5]}
49... Be3 {[%clk 0:01:06.3]} 50. a4 {[%clk 0:00:14.9]} 50... Kf6 {[%clk
0:01:06.3]} 51. b4 {[%clk 0:00:14.6]} 51... Ke5 {[%clk 0:01:06.4]} 52. b5 {[%clk
0:00:13.8]} 52... Bb6 {[%clk 0:01:05.5]} 53. Kf1 {[%clk 0:00:13]} 53... Kf4
{[%clk 0:01:05]} 54. Bd1 {[%clk 0:00:12.3]} 54... Ke3 {[%clk 0:01:03]} 55. Ke1
{[%clk 0:00:11.9]} 55... Ba5+ {[%clk 0:01:02.9]} 56. Kf1 {[%clk 0:00:12.1]}
56... Kd2 {[%clk 0:01:03.3]} 57. Bf3 {[%clk 0:00:11.9]} 57... Kc1 {[%clk
0:01:01.5]} 0-1

[Event "*** Titled Tuesday Blitz"]
[Site "Chess.com"]
[Date "2020.04.07"]
[Round "5"]
[White "Viuvanegra"]
[Black "PauloCesarCosta_sad"]
[Result "1/2-1/2"]
[WhiteElo "1946"]
[BlackElo "2196"]
[TimeControl "180+1"]
[EndTime "13:57:03 PDT"]
[Termination "Game drawn by agreement"]

1. d4 {[%clk 0:03:00.9]} 1... d5 {[%clk 0:02:59.2]} 2. c4 {[%clk 0:03:00.8]}
2... c6 {[%clk 0:02:58.7]} 3. Nf3 {[%clk 0:03:00]} 3... e6 {[%clk 0:02:58.4]} 4.
e3 {[%clk 0:02:55.7]} 4... f5 {[%clk 0:02:56.6]} 5. g3 {[%clk 0:02:40.6]} 5...
Nf6 {[%clk 0:02:55.9]} 6. Bg2 {[%clk 0:02:40]} 6... Bd6 {[%clk 0:02:43.5]} 7.
cxd5 {[%clk 0:02:27.3]} 7... exd5 {[%clk 0:02:43]} 8. O-O {[%clk 0:02:26.9]}
8... O-O {[%clk 0:02:42.5]} 9. Nc3 {[%clk 0:02:23.4]} 9... Ne4 {[%clk
0:02:40.4]} 10. Qc2 {[%clk 0:02:11.9]} 10... Nd7 {[%clk 0:02:39.3]} 11. b3
{[%clk 0:02:11.5]} 11... Ndf6 {[%clk 0:02:38]} 12. Bb2 {[%clk 0:02:10.8]} 12...
Be6 {[%clk 0:02:34.6]} 13. Ne2 {[%clk 0:02:07.5]} 13... Qe7 {[%clk 0:02:17.7]}
14. Ne5 {[%clk 0:02:00.2]} 14... Rae8 {[%clk 0:01:56.2]} 15. Nf4 {[%clk
0:01:42.7]} 15... Ng5 {[%clk 0:01:42.6]} 16. h4 {[%clk 0:01:27.4]} 16... Nf7
{[%clk 0:01:42.5]} 17. Nxe6 {[%clk 0:01:23.6]} 17... Qxe6 {[%clk 0:01:42.2]} 18.
Bh3 {[%clk 0:01:06.4]} 18... Nxe5 {[%clk 0:01:16.8]} 19. dxe5 {[%clk 0:01:01.6]}
19... Bxe5 {[%clk 0:01:16.1]} 20. Bxf5 {[%clk 0:01:00.2]} 20... Qd6 {[%clk
0:01:08.7]} 21. Bh3 {[%clk 0:00:36.6]} 21... Ne4 {[%clk 0:01:03.3]} 22. Bg2
{[%clk 0:00:32.1]} 22... Bxb2 {[%clk 0:01:01.7]} 23. Qxb2 {[%clk 0:00:31.6]}
23... Qb4 {[%clk 0:00:56.7]} 24. a3 {[%clk 0:00:22.3]} 24... Qd6 {[%clk
0:00:50.2]} 25. Rac1 {[%clk 0:00:19.6]} 25... a6 {[%clk 0:00:48.3]} 26. b4
{[%clk 0:00:19.2]} 26... Qg6 {[%clk 0:00:36.9]} 27. Qc2 {[%clk 0:00:16.2]} 27...
Qe6 {[%clk 0:00:33.9]} 28. a4 {[%clk 0:00:15.4]} 28... Nd6 {[%clk 0:00:33.7]}
29. Qb2 {[%clk 0:00:13.7]} 29... Nc4 {[%clk 0:00:32]} 30. Qd4 {[%clk 0:00:13.3]}
30... Qe5 {[%clk 0:00:28.5]} 31. Rfd1 {[%clk 0:00:12.2]} 31... Qxd4 {[%clk
0:00:25.2]} 32. Rxd4 {[%clk 0:00:12.2]} 32... Nb2 {[%clk 0:00:24.3]} 33. a5
{[%clk 0:00:10.4]} 33... Nc4 {[%clk 0:00:22.7]} 34. Bf1 {[%clk 0:00:10.6]} 34...
Nd6 {[%clk 0:00:21.2]} 35. Bd3 {[%clk 0:00:08.8]} 35... Nb5 {[%clk 0:00:14.5]}
36. Bxb5 {[%clk 0:00:08.7]} 36... axb5 {[%clk 0:00:15.4]} 37. Rf4 {[%clk
0:00:07.6]} 37... Rxf4 {[%clk 0:00:14.5]} 38. gxf4 {[%clk 0:00:07.6]} 38... Re4
{[%clk 0:00:14.8]} 39. a6 {[%clk 0:00:07.2]} 39... bxa6 {[%clk 0:00:13.9]} 40.
Rxc6 {[%clk 0:00:07.3]} 40... Rxb4 {[%clk 0:00:14]} 41. Rxa6 {[%clk 0:00:07.6]}
41... Rb1+ {[%clk 0:00:13.3]} 42. Kg2 {[%clk 0:00:07.7]} 42... b4 {[%clk
0:00:14.2]} 43. Rb6 {[%clk 0:00:08]} 43... b3 {[%clk 0:00:14.2]} 44. Kf3 {[%clk
0:00:08.4]} 44... b2 {[%clk 0:00:13.9]} 45. Rb5 {[%clk 0:00:07]} 45... Kf7
{[%clk 0:00:13]} 46. h5 {[%clk 0:00:06.4]} 46... h6 {[%clk 0:00:12.4]} 47. f5
{[%clk 0:00:06.2]} 47... Kf6 {[%clk 0:00:11.9]} 48. Kf4 {[%clk 0:00:06.5]} 48...
Kf7 {[%clk 0:00:07.8]} 49. Rb7+ {[%clk 0:00:06.3]} 49... Kf6 {[%clk 0:00:07.6]}
1/2-1/2

[Event "*** Titled Tuesday Blitz"]
[Site "Chess.com"]
[Date "2020.04.07"]
[Round "5"]
[White "AnishGiri"]
[Black "SketchyMoves"]
[Result "0-1"]
[WhiteElo "2917"]
[BlackElo "2741"]
[TimeControl "180+1"]
[EndTime "13:57:04 PDT"]
[Termination "SketchyMoves won by resignation"]

1. d4 {[%clk 0:03:00.9]} 1... e6 {[%clk 0:02:59.7]} 2. c4 {[%clk 0:03:01.1]}
2... Bb4+ {[%clk 0:02:59.4]} 3. Bd2 {[%clk 0:03:00.5]} 3... Qe7 {[%clk
0:02:58.2]} 4. a3 {[%clk 0:02:56.9]} 4... Bxd2+ {[%clk 0:02:57.6]} 5. Qxd2
{[%clk 0:02:57.3]} 5... Nf6 {[%clk 0:02:57.3]} 6. Nc3 {[%clk 0:02:57.8]} 6... d6
{[%clk 0:02:52.8]} 7. Nf3 {[%clk 0:02:47.1]} 7... O-O {[%clk 0:02:51.1]} 8. g3
{[%clk 0:02:38]} 8... b6 {[%clk 0:02:31.8]} 9. Bg2 {[%clk 0:02:37.2]} 9... Bb7
{[%clk 0:02:31.7]} 10. d5 {[%clk 0:02:35.8]} 10... a5 {[%clk 0:02:27.2]} 11. O-O
{[%clk 0:02:27.9]} 11... Re8 {[%clk 0:02:08.8]} 12. Rab1 {[%clk 0:02:19.4]}
12... Nbd7 {[%clk 0:02:03.8]} 13. Nd4 {[%clk 0:02:17.9]} 13... exd5 {[%clk
0:01:33.5]} 14. cxd5 {[%clk 0:02:15.2]} 14... a4 {[%clk 0:01:33.3]} 15. Rfe1
{[%clk 0:02:06.2]} 15... Nc5 {[%clk 0:01:33.3]} 16. e4 {[%clk 0:02:05.7]} 16...
Ba6 {[%clk 0:01:20.3]} 17. Nc6 {[%clk 0:02:05.7]} 17... Qf8 {[%clk 0:01:18.1]}
18. Nb4 {[%clk 0:02:02.9]} 18... Bc4 {[%clk 0:01:08.6]} 19. Qd4 {[%clk
0:02:02.9]} 19... b5 {[%clk 0:01:05.6]} 20. h3 {[%clk 0:01:54.1]} 20... Nfd7
{[%clk 0:01:02]} 21. f4 {[%clk 0:01:51.2]} 21... Nb3 {[%clk 0:01:00]} 22. Qf2
{[%clk 0:01:48.6]} 22... f6 {[%clk 0:00:51.3]} 23. Rbd1 {[%clk 0:01:45.4]} 23...
Nbc5 {[%clk 0:00:50.3]} 24. h4 {[%clk 0:01:40.5]} 24... Na6 {[%clk 0:00:42.5]}
25. Nc6 {[%clk 0:01:39.6]} 25... Nac5 {[%clk 0:00:39.8]} 26. Bh3 {[%clk
0:01:36.9]} 26... Nb8 {[%clk 0:00:39.1]} 27. Nb4 {[%clk 0:01:36]} 27... Nba6
{[%clk 0:00:38.9]} 28. Nxa6 {[%clk 0:01:33.3]} 28... Rxa6 {[%clk 0:00:38.7]} 29.
Re3 {[%clk 0:01:31.6]} 29... Raa8 {[%clk 0:00:36.1]} 30. Kh2 {[%clk 0:01:30.3]}
30... Re7 {[%clk 0:00:36.3]} 31. Qf3 {[%clk 0:01:22.2]} 31... Rae8 {[%clk
0:00:36.2]} 32. Rde1 {[%clk 0:01:22.7]} 32... g6 {[%clk 0:00:36.2]} 33. Kg2
{[%clk 0:01:20.6]} 33... Qg7 {[%clk 0:00:36.3]} 34. Qd1 {[%clk 0:01:14.1]} 34...
f5 {[%clk 0:00:31.8]} 35. e5 {[%clk 0:01:02.6]} 35... dxe5 {[%clk 0:00:32.7]}
36. d6 {[%clk 0:01:02.2]} 36... cxd6 {[%clk 0:00:25.7]} 37. Qxd6 {[%clk
0:01:02.3]} 37... Nb7 {[%clk 0:00:24.9]} 38. Qc6 {[%clk 0:01:01.9]} 38... e4
{[%clk 0:00:23.6]} 39. g4 {[%clk 0:01:02.3]} 39... Nd8 {[%clk 0:00:21.7]} 40.
Qd6 {[%clk 0:01:00.2]} 40... Nf7 {[%clk 0:00:19.5]} 41. Qc5 {[%clk 0:01:00.8]}
41... Nd8 {[%clk 0:00:17.3]} 42. gxf5 {[%clk 0:01:00.9]} 42... Kh8 {[%clk
0:00:12.7]} 43. fxg6 {[%clk 0:00:56.5]} 43... Qxg6+ {[%clk 0:00:13.1]} 44. Rg3
{[%clk 0:00:57.1]} 44... Qf6 {[%clk 0:00:13.5]} 45. Qg5 {[%clk 0:00:56.5]} 45...
Qd4 {[%clk 0:00:11.8]} 46. Rd1 {[%clk 0:00:55.9]} 46... Bd3 {[%clk 0:00:12.2]}
47. Bf5 {[%clk 0:00:52.8]} 47... Nf7 {[%clk 0:00:10.6]} 48. Qh5 {[%clk
0:00:53.2]} 48... Nd6 {[%clk 0:00:10.2]} 49. Bg6 {[%clk 0:00:45.5]} 49... Rf8
{[%clk 0:00:09.7]} 50. Rd2 {[%clk 0:00:41.8]} 50... Rg7 {[%clk 0:00:08.4]} 51.
f5 {[%clk 0:00:38.2]} 51... Nc4 {[%clk 0:00:08.2]} 52. Rf2 {[%clk 0:00:37.3]}
52... Ne3+ {[%clk 0:00:08.1]} 53. Kh3 {[%clk 0:00:37.3]} 53... Qe5 {[%clk
0:00:08.1]} 54. f6 {[%clk 0:00:36.6]} 54... Qe6+ {[%clk 0:00:04.5]} 55. Kh2
{[%clk 0:00:35.6]} 55... Rxf6 {[%clk 0:00:04.9]} 56. Rxf6 {[%clk 0:00:27.5]}
56... Qxf6 {[%clk 0:00:05.8]} 57. Bxe4 {[%clk 0:00:18.7]} 57... Nf1+ {[%clk
0:00:06.1]} 58. Kh1 {[%clk 0:00:15.6]} 58... Nxg3+ {[%clk 0:00:05.1]} 59. Kh2
{[%clk 0:00:16.1]} 59... Nxh5 {[%clk 0:00:05.6]} 0-1

[Event "*** Titled Tuesday Blitz"]
[Site "Chess.com"]
[Date "2020.04.07"]
[Round "5"]
[White "StephenDedalus83"]
[Black "FMAntonio"]
[Result "1-0"]
[WhiteElo "2741"]
[BlackElo "2553"]
[TimeControl "180+1"]
[EndTime "13:57:04 PDT"]
[Termination "StephenDedalus83 won on time"]

1. e4 {[%clk 0:03:00.9]} 1... e5 {[%clk 0:02:58.5]} 2. Nf3 {[%clk 0:03:00.8]}
2... Nf6 {[%clk 0:02:56.6]} 3. Nxe5 {[%clk 0:02:59.5]} 3... d6 {[%clk
0:02:56.8]} 4. Nf3 {[%clk 0:03:00]} 4... Nxe4 {[%clk 0:02:56.9]} 5. Bd3 {[%clk
0:03:00.6]} 5... Nf6 {[%clk 0:02:47.5]} 6. h3 {[%clk 0:03:00.8]} 6... Be7 {[%clk
0:02:43.1]} 7. O-O {[%clk 0:03:00.7]} 7... O-O {[%clk 0:02:37.2]} 8. c3 {[%clk
0:03:00.8]} 8... c5 {[%clk 0:02:36]} 9. Bc2 {[%clk 0:03:00.5]} 9... Nc6 {[%clk
0:02:31.5]} 10. d4 {[%clk 0:03:00.5]} 10... Be6 {[%clk 0:02:29.4]} 11. Bg5
{[%clk 0:02:54.8]} 11... Bd5 {[%clk 0:02:23.4]} 12. Be3 {[%clk 0:02:35.7]} 12...
h6 {[%clk 0:02:13.5]} 13. Nbd2 {[%clk 0:02:33.4]} 13... Be6 {[%clk 0:01:57.5]}
14. dxc5 {[%clk 0:02:22.8]} 14... dxc5 {[%clk 0:01:57.1]} 15. Ne4 {[%clk
0:02:23.4]} 15... Nxe4 {[%clk 0:01:56.5]} 16. Bxe4 {[%clk 0:02:22.7]} 16... Qc7
{[%clk 0:01:55]} 17. Nd2 {[%clk 0:02:22.3]} 17... Rad8 {[%clk 0:01:51.5]} 18.
Qa4 {[%clk 0:02:20.7]} 18... Bd7 {[%clk 0:01:43.5]} 19. Qb3 {[%clk 0:02:05.2]}
19... b6 {[%clk 0:01:39.6]} 20. Nc4 {[%clk 0:01:55.7]} 20... Be6 {[%clk
0:01:38.7]} 21. Qa4 {[%clk 0:01:54]} 21... Nb8 {[%clk 0:01:16]} 22. Rad1 {[%clk
0:01:49.8]} 22... a6 {[%clk 0:01:14.5]} 23. Na3 {[%clk 0:01:44.7]} 23... b5
{[%clk 0:01:10.5]} 24. Qc2 {[%clk 0:01:44.2]} 24... Bd6 {[%clk 0:00:57.6]} 25.
c4 {[%clk 0:01:39]} 25... b4 {[%clk 0:00:57.1]} 26. Nb1 {[%clk 0:01:37.6]} 26...
Nc6 {[%clk 0:00:52.2]} 27. Nd2 {[%clk 0:01:36.2]} 27... Be7 {[%clk 0:00:49.4]}
28. Nb3 {[%clk 0:01:34.3]} 28... Ne5 {[%clk 0:00:49.5]} 29. Bd5 {[%clk
0:01:25.2]} 29... Bxd5 {[%clk 0:00:46.8]} 30. cxd5 {[%clk 0:01:15.7]} 30... c4
{[%clk 0:00:44.4]} 31. Bf4 {[%clk 0:01:15.8]} 31... Nf3+ {[%clk 0:00:41.6]} 32.
gxf3 {[%clk 0:01:13.9]} 32... Qxf4 {[%clk 0:00:41]} 33. Na5 {[%clk 0:01:07.9]}
33... Bd6 {[%clk 0:00:39.2]} 34. Rfe1 {[%clk 0:01:02.2]} 34... Rfe8 {[%clk
0:00:35.5]} 35. Re4 {[%clk 0:01:01]} 35... Qxf3 {[%clk 0:00:25.9]} 36. Rde1
{[%clk 0:00:58.9]} 36... Rxe4 {[%clk 0:00:20.6]} 37. Qxe4 {[%clk 0:00:57.7]}
37... Qxh3 {[%clk 0:00:20.6]} 38. Qg2 {[%clk 0:00:57.8]} 38... Qxg2+ {[%clk
0:00:20.5]} 39. Kxg2 {[%clk 0:00:57.8]} 39... c3 {[%clk 0:00:17.8]} 40. bxc3
{[%clk 0:00:51.7]} 40... bxc3 {[%clk 0:00:17.6]} 41. Rc1 {[%clk 0:00:49.3]}
41... Kh7 {[%clk 0:00:14.9]} 42. Nc6 {[%clk 0:00:47.8]} 42... Rd7 {[%clk
0:00:13.2]} 43. Rxc3 {[%clk 0:00:47.7]} 43... Bf4 {[%clk 0:00:10]} 44. Rd3
{[%clk 0:00:47]} 44... g5 {[%clk 0:00:07.2]} 45. Kf3 {[%clk 0:00:45]} 45... Kg6
{[%clk 0:00:07]} 46. Ke4 {[%clk 0:00:45.1]} 46... f5+ {[%clk 0:00:05.3]} 47. Kd4
{[%clk 0:00:45.1]} 47... h5 {[%clk 0:00:04.6]} 48. Ne5+ {[%clk 0:00:40.5]} 48...
Bxe5+ {[%clk 0:00:04.2]} 49. Kxe5 {[%clk 0:00:41.4]} 49... h4 {[%clk 0:00:02.1]}
50. d6 {[%clk 0:00:41.2]} 50... g4 {[%clk 0:00:02]} 51. Ke6 {[%clk 0:00:41.4]}
51... Ra7 {[%clk 0:00:01.4]} 52. d7 {[%clk 0:00:41.5]} 52... Ra8 {[%clk
0:00:01.3]} 53. d8=Q {[%clk 0:00:39.6]} 53... Rxd8 {[%clk 0:00:01.2]} 54. Rxd8
{[%clk 0:00:40.1]} 54... Kg5 {[%clk 0:00:01.5]} 55. Rf8 {[%clk 0:00:38.9]} 55...
Kf4 {[%clk 0:00:01.7]} 56. Rxf5+ {[%clk 0:00:38.9]} 56... Ke4 {[%clk 0:00:02.1]}
57. Ra5 {[%clk 0:00:36.1]} 57... h3 {[%clk 0:00:01.8]} 58. Rxa6 {[%clk
0:00:36.1]} 58... h2 {[%clk 0:00:01.6]} 59. Ra4+ {[%clk 0:00:35.4]} 59... Kf3
{[%clk 0:00:01.4]} 60. Ra3+ {[%clk 0:00:35.6]} 60... Kxf2 {[%clk 0:00:01.9]} 61.
Ra5 {[%clk 0:00:34.6]} 61... h1=Q {[%clk 0:00:01.8]} 62. Rf5+ {[%clk 0:00:35.1]}
62... Ke2 {[%clk 0:00:01.6]} 63. Re5+ {[%clk 0:00:35.3]} 63... Kd3 {[%clk
0:00:01.9]} 64. a4 {[%clk 0:00:35.3]} 64... Qh6+ {[%clk 0:00:01.4]} 65. Kf5
{[%clk 0:00:35]} 1-0

[Event "*** Titled Tuesday Blitz"]
[Site "Chess.com"]
[Date "2020.04.07"]
[Round "5"]
[White "Faqade"]
[Black "Bajecny"]
[Result "0-1"]
[WhiteElo "2603"]
[BlackElo "2287"]
[TimeControl "180+1"]
[EndTime "13:57:05 PDT"]
[Termination "Bajecny won on time"]

1. e4 {[%clk 0:03:00.9]} 1... c5 {[%clk 0:02:58.1]} 2. Nf3 {[%clk 0:03:01]} 2...
e6 {[%clk 0:02:58.4]} 3. d4 {[%clk 0:03:00.9]} 3... cxd4 {[%clk 0:02:59.3]} 4.
Nxd4 {[%clk 0:03:01.2]} 4... Nc6 {[%clk 0:02:59.9]} 5. Nc3 {[%clk 0:03:00.5]}
5... Qc7 {[%clk 0:02:59.9]} 6. Be3 {[%clk 0:03:01.1]} 6... a6 {[%clk 0:02:58.6]}
7. Qf3 {[%clk 0:03:01.4]} 7... Nf6 {[%clk 0:02:57.7]} 8. O-O-O {[%clk
0:03:00.6]} 8... Rb8 {[%clk 0:02:52.1]} 9. Be2 {[%clk 0:02:53.4]} 9... Bb4
{[%clk 0:02:41.7]} 10. Bf4 {[%clk 0:02:01.5]} 10... e5 {[%clk 0:02:32.9]} 11.
Nd5 {[%clk 0:02:00.3]} 11... Nxd5 {[%clk 0:02:30.5]} 12. exd5 {[%clk 0:01:59.5]}
12... Ne7 {[%clk 0:02:06.2]} 13. Bg3 {[%clk 0:01:50]} 13... d6 {[%clk
0:02:06.4]} 14. Nb3 {[%clk 0:01:48.1]} 14... O-O {[%clk 0:02:01.7]} 15. a3
{[%clk 0:01:46.3]} 15... Bc5 {[%clk 0:02:01.8]} 16. Qc3 {[%clk 0:01:30.7]} 16...
Ng6 {[%clk 0:01:32.8]} 17. Nxc5 {[%clk 0:01:23.2]} 17... Qxc5 {[%clk 0:01:33.7]}
18. Qxc5 {[%clk 0:01:23.6]} 18... dxc5 {[%clk 0:01:34.6]} 19. d6 {[%clk
0:01:23.9]} 19... Be6 {[%clk 0:01:34.6]} 20. h4 {[%clk 0:01:20.4]} 20... Rfd8
{[%clk 0:01:30.1]} 21. h5 {[%clk 0:01:19.5]} 21... Nf4 {[%clk 0:01:30.1]} 22.
Bxf4 {[%clk 0:01:18.6]} 22... exf4 {[%clk 0:01:30.3]} 23. Rh4 {[%clk 0:00:53.4]}
23... Rd7 {[%clk 0:01:30.1]} 24. Rxf4 {[%clk 0:00:53]} 24... Rbd8 {[%clk
0:01:30.5]} 25. Bf3 {[%clk 0:00:53.6]} 25... b5 {[%clk 0:01:24.7]} 26. b4 {[%clk
0:00:33.7]} 26... cxb4 {[%clk 0:01:23.3]} 27. axb4 {[%clk 0:00:33.6]} 27... Rxd6
{[%clk 0:01:23.6]} 28. c3 {[%clk 0:00:30.3]} 28... h6 {[%clk 0:01:00.8]} 29.
Rxd6 {[%clk 0:00:26.2]} 29... Rxd6 {[%clk 0:01:00.6]} 30. Rd4 {[%clk 0:00:26.8]}
30... Rxd4 {[%clk 0:00:51.9]} 31. cxd4 {[%clk 0:00:27.7]} 31... Bc8 {[%clk
0:00:51.4]} 32. d5 {[%clk 0:00:19.6]} 32... Kf8 {[%clk 0:00:50.8]} 33. d6 {[%clk
0:00:16.8]} 33... Ke8 {[%clk 0:00:49.9]} 34. Bc6+ {[%clk 0:00:16.8]} 34... Bd7
{[%clk 0:00:42]} 35. Bb7 {[%clk 0:00:16.5]} 35... Bg4 {[%clk 0:00:42.1]} 36.
Bxa6 {[%clk 0:00:15.2]} 36... Kd7 {[%clk 0:00:42.3]} 37. Bxb5+ {[%clk
0:00:14.8]} 37... Kxd6 {[%clk 0:00:42.7]} 38. Kd2 {[%clk 0:00:15.2]} 38... Bxh5
{[%clk 0:00:42.6]} 39. Be2 {[%clk 0:00:14.6]} 39... Bg6 {[%clk 0:00:37.8]} 40.
Bd3 {[%clk 0:00:12]} 40... f5 {[%clk 0:00:32.7]} 41. Kc3 {[%clk 0:00:09.4]}
41... Ke5 {[%clk 0:00:32.2]} 42. b5 {[%clk 0:00:07.6]} 42... Be8 {[%clk
0:00:30.3]} 43. Kb4 {[%clk 0:00:07.7]} 43... g5 {[%clk 0:00:15.2]} 44. Kc5
{[%clk 0:00:07.1]} 44... Bf7 {[%clk 0:00:14.9]} 45. Bc4 {[%clk 0:00:01.1]} 45...
Bh5 {[%clk 0:00:14.4]} 0-1

[Event "*** Titled Tuesday Blitz"]
[Site "Chess.com"]
[Date "2020.04.07"]
[Round "5"]
[White "lelya96"]
[Black "littleozy"]
[Result "0-1"]
[WhiteElo "2261"]
[BlackElo "2465"]
[TimeControl "180+1"]
[EndTime "13:57:05 PDT"]
[Termination "littleozy won by resignation"]

1. d4 {[%clk 0:02:57.7]} 1... d5 {[%clk 0:02:59]} 2. Nc3 {[%clk 0:02:56.5]} 2...
Nf6 {[%clk 0:02:56.6]} 3. Bg5 {[%clk 0:02:55.2]} 3... c6 {[%clk 0:02:56.5]} 4.
Nf3 {[%clk 0:02:53.3]} 4... h6 {[%clk 0:02:55]} 5. Bxf6 {[%clk 0:02:53.2]} 5...
exf6 {[%clk 0:02:54.6]} 6. e4 {[%clk 0:02:52.9]} 6... dxe4 {[%clk 0:02:53.6]} 7.
Nxe4 {[%clk 0:02:53]} 7... Be7 {[%clk 0:02:48]} 8. Bd3 {[%clk 0:02:52]} 8... Bg4
{[%clk 0:02:45.3]} 9. c3 {[%clk 0:02:50.1]} 9... Nd7 {[%clk 0:02:44.5]} 10. h3
{[%clk 0:02:49.9]} 10... Bxf3 {[%clk 0:02:43.3]} 11. Qxf3 {[%clk 0:02:50.3]}
11... g6 {[%clk 0:02:35.8]} 12. O-O {[%clk 0:02:45.9]} 12... f5 {[%clk
0:02:30.3]} 13. Ng3 {[%clk 0:02:42.8]} 13... Nf8 {[%clk 0:02:15.7]} 14. Rfe1
{[%clk 0:02:35.2]} 14... Ne6 {[%clk 0:02:14.7]} 15. Bc4 {[%clk 0:02:32.7]} 15...
Ng5 {[%clk 0:01:58.2]} 16. Qf4 {[%clk 0:02:29.2]} 16... O-O {[%clk 0:01:53.3]}
17. Rad1 {[%clk 0:01:59]} 17... Bd6 {[%clk 0:01:50.5]} 18. Qc1 {[%clk
0:01:52.9]} 18... Kh7 {[%clk 0:01:42.7]} 19. Qc2 {[%clk 0:01:45.6]} 19... Bxg3
{[%clk 0:01:41.1]} 20. fxg3 {[%clk 0:01:45.4]} 20... Ne4 {[%clk 0:01:41]} 21. g4
{[%clk 0:01:45]} 21... Qg5 {[%clk 0:01:30]} 22. gxf5 {[%clk 0:01:41.7]} 22...
gxf5 {[%clk 0:01:29.5]} 23. Bd3 {[%clk 0:01:38]} 23... Ng3 {[%clk 0:01:22.5]}
24. Re5 {[%clk 0:01:28.9]} 24... Rae8 {[%clk 0:01:16.6]} 25. Bxf5+ {[%clk
0:01:28.1]} 25... Kh8 {[%clk 0:01:15.7]} 26. Be6 {[%clk 0:01:01.5]} 26... Qg7
{[%clk 0:01:04.3]} 27. Bg4 {[%clk 0:00:42.9]} 27... Rxe5 {[%clk 0:01:01.9]} 28.
dxe5 {[%clk 0:00:43.3]} 28... Qxe5 {[%clk 0:00:59.7]} 29. Qf2 {[%clk 0:00:38.3]}
29... Re8 {[%clk 0:00:50.7]} 30. Qd4 {[%clk 0:00:38]} 30... Qxd4+ {[%clk
0:00:48.8]} 31. Rxd4 {[%clk 0:00:38]} 31... Ne2+ {[%clk 0:00:48.5]} 32. Bxe2
{[%clk 0:00:37.6]} 32... Rxe2 {[%clk 0:00:49.4]} 33. Rb4 {[%clk 0:00:36]} 33...
b5 {[%clk 0:00:48.3]} 34. a4 {[%clk 0:00:29.9]} 34... a5 {[%clk 0:00:43.5]} 35.
Rf4 {[%clk 0:00:14.4]} 35... Rxb2 {[%clk 0:00:39.2]} 36. axb5 {[%clk 0:00:13.8]}
36... cxb5 {[%clk 0:00:36.7]} 37. Rxf7 {[%clk 0:00:14.2]} 37... a4 {[%clk
0:00:33.2]} 38. Rb7 {[%clk 0:00:13.2]} 38... a3 {[%clk 0:00:32.5]} 39. Kh2
{[%clk 0:00:11.9]} 39... a2 {[%clk 0:00:32.6]} 40. Ra7 {[%clk 0:00:12.1]} 40...
Kg8 {[%clk 0:00:31.7]} 41. Kg3 {[%clk 0:00:11.8]} 41... Kf8 {[%clk 0:00:30.7]}
42. Kg4 {[%clk 0:00:12]} 42... Rxg2+ {[%clk 0:00:29.7]} 43. Kh5 {[%clk
0:00:12.2]} 43... Rh2 {[%clk 0:00:26.3]} 44. h4 {[%clk 0:00:11.7]} 44... Ke8
{[%clk 0:00:26.1]} 45. Kg6 {[%clk 0:00:07.5]} 45... Kd8 {[%clk 0:00:22.9]} 46.
h5 {[%clk 0:00:07.1]} 46... Kc8 {[%clk 0:00:22.4]} 47. Kxh6 {[%clk 0:00:07.6]}
47... Kb8 {[%clk 0:00:22.4]} 48. Ra5 {[%clk 0:00:07.9]} 48... Kb7 {[%clk
0:00:18]} 49. Kg6 {[%clk 0:00:05.8]} 49... Kb6 {[%clk 0:00:17.8]} 50. Ra8 {[%clk
0:00:05.8]} 50... Kc5 {[%clk 0:00:15.9]} 51. h6 {[%clk 0:00:06.3]} 51... Kc4
{[%clk 0:00:16]} 52. Rc8+ {[%clk 0:00:06.3]} 52... Kb3 {[%clk 0:00:15.7]} 53.
Ra8 {[%clk 0:00:06.4]} 53... Kxc3 {[%clk 0:00:15.8]} 54. h7 {[%clk 0:00:06.7]}
54... Kb2 {[%clk 0:00:15.9]} 55. Rxa2+ {[%clk 0:00:04.1]} 55... Kxa2 {[%clk
0:00:15]} 0-1